fUST/lending_fUST_20260205
["ID","MTS","AMOUNT","RATE_DAILY","PERIOD"]
[404554387,1770285791474,262.62093677,0.0003979,120]
[404554388,1770285791924,262.62093677,0.0003979,120]
[404554389,1770285792480,262.62093677,0.0003979,120]
[404554390,1770285794369,2278.36,0.00030137,120]
[404554391,1770285795618,312.73263469,0.0003979,20]
[404554396,1770285930115,-150.10285153,0.00017808,2]
[404554397,1770285930136,-4231.39140822,0.00026849,2]
[404554398,1770285930156,-672.319931,0.00027024,2]
[404554399,1770285930176,-219.2668532,0.00027024,2]
[404554400,1770285930197,-500.0,0.00028172,2]
[404554401,1770285930217,-500.0,0.00028172,2]
[404554402,1770285930237,-500.0,0.00028172,2]
[404554403,1770285930256,-460.21040713,0.00028172,2]
[404554404,1770285930276,-500.0,0.00028172,2]
[404554405,1770285930296,-500.0,0.00028172,2]
[404554406,1770285930320,-500.0,0.00028172,2]
[404554407,1770285930342,-500.0,0.00028172,2]
[404554408,1770285930363,-619.91374423,0.00028172,2]
[404554409,1770285930383,-500.0,0.00028172,2]
[404554410,1770285930403,-500.0,0.00028172,2]
[404554411,1770285930424,-244.53742037,0.00028172,2]
[404554412,1770285930450,-500.0,0.00028172,2]
[404554413,1770285930471,-500.0,0.00028172,2]
[404554414,1770285930491,-206.67908552,0.00028172,2]
[404554415,1770285930511,-168.55709974,0.00028173,2]
[404554416,1770285930531,-4838.96529506,0.00028173,2]
[404554417,1770285949201,678.5,0.00039953,20]
[404554418,1770285952091,-36035.33268101,0.00028173,2]
[404554419,1770285952113,-15893.6825478,0.00028174,2]
[404554420,1770285952136,-600.0,0.00028735,30]
[404554421,1770285952156,-741.26793723,0.00030236,2]
[404554422,1770285952175,-672.319931,0.00030341,2]
[404554423,1770285952196,-172.261317,0.00030795,2]
[404554424,1770285952219,-720.0,0.00031608,30]
[404554425,1770285952241,-285.42305903,0.00032877,7]
[404554426,1770285952264,-155.73182908,0.000332,117]
[404554427,1770285952289,-672.319931,0.00033658,2]
[404554428,1770285952311,-172.261317,0.00034036,2]
[404554429,1770285952332,-233.125,0.00034321,2]
[404554430,1770285952354,-247.381,0.00034321,2]
[404554431,1770285952374,-268.359,0.00034321,2]
[404554432,1770285952396,-864.0,0.00034769,30]
[404554433,1770285952417,-672.319931,0.00036975,2]
[404554434,1770285952438,-172.157658,0.0003725,60]
[404554435,1770285952459,-172.157658,0.0003725,60]
[404554436,1770285952479,-172.261317,0.00037276,2]
[404554437,1770285952498,-821.306162,0.00037882,2]
[404554438,1770285952520,-1000.0,0.00038246,30]
[404554439,1770285952539,-219.2668532,0.00039187,2]
[404554440,1770285952559,-608.21847566,0.0003968,2]
[404554441,1770285952579,-204.72505301,0.0003968,12]
[404554442,1770285952601,-608.21847562,0.00039733,2]
[404554443,1770285952620,-255.81,0.00039768,10]
[404554444,1770285952640,-4414.9934976,0.00039768,3]
[404554445,1770285952660,-101311.89248176,0.00039778,2]
[404554446,1770286000096,-454.79372596,0.00035685,2]
[404554447,1770286025092,-264.20627404,0.00035685,2]
[404554448,1770286025116,-179.0,0.00035685,2]
[404554449,1770286025137,-229.231,0.00035685,2]
[404554450,1770286025157,-420.0,0.00035685,2]
[404554451,1770286025178,-300.0,0.00036398,30]
[404554452,1770286025200,-300.0,0.00036398,30]
[404554453,1770286025221,-300.0,0.00036398,30]
[404554454,1770286025244,-300.0,0.00036398,30]
[404554455,1770286025266,-300.0,0.00036398,30]
[404554456,1770286025287,-300.0,0.00036398,30]
[404554457,1770286025307,-300.0,0.00036398,30]
[404554458,1770286025328,-300.0,0.00036398,30]
[404554459,1770286025349,-300.0,0.00036398,30]
[404554460,1770286025371,-300.0,0.00036398,30]
[404554461,1770286025395,-300.0,0.00036398,30]
[404554462,1770286025416,-300.0,0.00036398,30]
[404554463,1770286025437,-300.0,0.00036398,30]
[404554464,1770286025457,-300.0,0.00036398,30]
[404554465,1770286025478,-300.0,0.00036398,30]
[404554466,1770286025497,-346.49,0.00038685,2]
[404554467,1770286025516,-162.463,0.00038685,2]
[404554468,1770286025535,-420.0,0.00038685,2]
[404554469,1770286025555,-608.21847566,0.0003968,2]
[404554470,1770286025574,-500.0,0.00039777,31]
[404554471,1770286025596,-500.0,0.00039777,31]
[404554472,1770286025617,-460.21040713,0.00039777,31]
[404554473,1770286025637,-285.42305903,0.00039777,15]
[404554474,1770286025658,-179.99041603,0.00039777,7]
[404554475,1770286025679,-189.6310095,0.00039777,31]
[404554476,1770286025700,-193.83749115,0.00039777,31]
[404554477,1770286025720,-500.0,0.00039777,7]
[404554478,1770286025741,-132382.20962846,0.00039778,2]
[404554479,1770286040083,-741.26793723,0.00035685,2]
[404554480,1770286040102,-608.21847562,0.00039735,2]
[404554481,1770286040121,-255.81,0.00039775,10]
[404554482,1770286040141,-78151.14759978,0.00039778,2]
[404554483,1770286040161,-1471.6644992,0.0003978,3]
[404554484,1770286040180,-18570.27302817,0.00039785,2]
[404554486,1770286046133,-17465.05965284,0.00039785,2]
[404554487,1770286046158,-67975.61669416,0.0003979,2]
[404554491,1770286054081,-53831.13953015,0.0003979,2]
[404554492,1770286054101,-1471.6644992,0.0003979,3]
[404554493,1770286054119,-608.21847562,0.0003979,2]
[404554494,1770286054139,-370.98092633,0.0003979,20]
[404554495,1770286054158,-68148.59,0.000398,2]
[404554496,1770286054178,-160.39,0.000398,14]
[404554497,1770286054198,-196.61,0.000398,30]
[404554498,1770286054217,-163.59,0.000398,7]
[404554499,1770286054236,-608.21847562,0.00039845,2]
[404554500,1770286054255,-608.21847562,0.000399,2]
[404554501,1770286054274,-741.26793723,0.0003999,3]
[404554502,1770286054293,-4414.9934976,0.0003999,3]
[404554503,1770286054312,-123738.05683103,0.0004,2]
[404554556,1770286231664,-4086.26320637,0.00026849,2]
[404554557,1770286231673,-741.26793723,0.00030386,2]
[404554558,1770286231683,-172.14,0.00037172,60]
[404554559,1770286231693,-172.14,0.00037272,60]
[404554560,1770286231702,-172.157658,0.00037372,60]
[404554561,1770286231712,-300.0,0.00038339,60]
[404554562,1770286231722,-300.0,0.00038339,60]
[404554563,1770286231731,-300.0,0.00038339,60]
[404554564,1770286231741,-300.0,0.00038339,60]
[404554565,1770286231750,-300.0,0.00038339,60]
[404554566,1770286231759,-300.0,0.00038339,60]
[404554567,1770286231769,-300.0,0.00038339,60]
[404554568,1770286231778,-300.0,0.00038339,60]
[404554570,1770286231788,-300.0,0.00038339,60]
[404554571,1770286231796,-300.0,0.00038339,60]
[404554573,1770286231805,-300.0,0.00038339,60]
[404554575,1770286231815,-300.0,0.00038339,60]
[404554576,1770286231824,-300.0,0.00038339,60]
[404554578,1770286231834,-300.0,0.00038339,60]
[404554580,1770286231847,-300.0,0.00038339,60]
[404554581,1770286231856,-155.73182908,0.0003959,120]
[404554582,1770286231865,-1089.00842932,0.0003969,2]
[404554606,1770286238028,-438.5337064,0.00039797,2]
[404554607,1770286238037,-204.72505301,0.000399,12]
[404554608,1770286238047,-1219.01992877,0.000399,2]
[404554609,1770286238057,-1105.0,0.00039912,20]
[404554610,1770286238067,-1131.7984,0.00039912,2]
[404554611,1770286238079,-1001.45,0.00039912,2]
[404554612,1770286238091,-735.8322496,0.0003999,3]
[404554613,1770286238100,-161961.94316897,0.0004,2]
[404554614,1770286238110,-151.0,0.0004,120]
[404554615,1770286238118,-151.0,0.0004,120]
[404554616,1770286238126,-151.0,0.0004,120]
[404554617,1770286238135,-274.9757,0.0004,120]
[404554618,1770286238144,-163.59,0.0004,7]
[404554620,1770286238153,-600.0,0.00040799,60]
[404554621,1770286238164,-800.0,0.00041096,120]
[404554623,1770286238174,-500.0,0.00041096,31]
[404554625,1770286238184,-576.45754188,0.00041096,31]
[404554627,1770286238195,-500.0,0.00041096,31]
[404554629,1770286238205,-1041.66666667,0.00041366,2]
[404554631,1770286238215,-800.0,0.00041644,120]
[404554633,1770286238224,-420.0,0.00041685,2]
[404554635,1770286238234,-800.0,0.00042192,120]
[404554637,1770286238246,-1219.01992877,0.0004264,2]
[404554639,1770286238256,-800.0,0.0004274,120]
[404554641,1770286238266,-2689.2797243,0.00043086,2]
[404554643,1770286238275,-4086.26320637,0.00043165,2]
[404554644,1770286238285,-800.0,0.00043288,120]
[404554646,1770286238294,-1000.0,0.000438,90]
[404554647,1770286238304,-196.61,0.000438,30]
[404554649,1770286238314,-61452.51,0.000438,14]
[404554651,1770286238325,-800.0,0.00043836,120]
[404554652,1770286238335,-367.9161248,0.00044374,3]
[404554653,1770286238347,-800.0,0.00044384,120]
[404554654,1770286238358,-327.303,0.00044685,2]
[404554656,1770286238368,-720.0,0.00044879,60]
[404554658,1770286238379,-800.0,0.00044932,120]
[404554659,1770286238389,-1219.01992877,0.00045379,2]
[404554661,1770286238399,-800.0,0.00045479,120]
[404554663,1770286238409,-500.16,0.00046027,120]
[404554665,1770286238419,-864.0,0.00049367,120]
[404554666,1770286238429,-323.0,0.0005,2]
[404554668,1770286238440,-153.0,0.0005,120]
[404554670,1770286238450,-153.0,0.000522,120]
[404554671,1770286238461,-151.0,0.000541,27]
[404554672,1770286238470,-1000.0,0.00054303,120]
[404554673,1770286238481,-153.0,0.000545,120]
[404554674,1770286238491,-367.9161248,0.00054784,4]
[404554675,1770286238501,-1000.0,0.00054794,2]
[404554676,1770286238512,-500.0,0.00054794,120]
[404554677,1770286238523,-500.0,0.00054794,120]
[404554678,1770286238533,-546.07,0.00054794,120]
[404554679,1770286238544,-500.0,0.00054794,120]
[404554680,1770286238554,-500.0,0.00054794,120]
[404554681,1770286238564,-500.0,0.00054794,120]
[404554682,1770286238576,-500.0,0.00054794,120]
[404554683,1770286238587,-500.0,0.00054794,120]
[404554684,1770286238597,-500.0,0.00054794,120]
[404554685,1770286238608,-500.0,0.00054794,120]
[404554686,1770286238618,-500.0,0.00054794,120]
[404554687,1770286238628,-500.0,0.00054794,120]
[404554688,1770286238641,-500.0,0.00054794,120]
[404554689,1770286238651,-500.0,0.00054794,120]
[404554690,1770286238662,-503.16072208,0.00054794,120]
[404554691,1770286238675,-534.74256955,0.00054794,120]
[404554692,1770286238685,-500.0,0.00054794,120]
[404554693,1770286238696,-500.0,0.00054794,120]
[404554694,1770286238706,-515.16315374,0.00054794,120]
[404554695,1770286238716,-500.0,0.00054794,120]
[404554696,1770286238726,-500.0,0.00054794,120]
[404554697,1770286238736,-519.30880371,0.00054794,120]
[404554698,1770286238747,-500.0,0.00054794,120]
[404554699,1770286238758,-500.0,0.00054794,120]
[404554700,1770286238767,-367.41228599,0.00054794,120]
[404554701,1770286238778,-500.0,0.00054794,120]
[404554702,1770286238789,-500.0,0.00054794,120]
[404554703,1770286238799,-500.0,0.00054794,120]
[404554704,1770286238810,-500.0,0.00054794,120]
[404554705,1770286238820,-500.0,0.00054794,120]
[404554706,1770286238831,-500.0,0.00054794,120]
[404554707,1770286238844,-500.0,0.00054794,120]
[404554708,1770286238854,-500.0,0.00054794,120]
[404554709,1770286238865,-500.0,0.00054794,120]
[404554710,1770286238876,-510.91768141,0.00054794,120]
[404554711,1770286238887,-500.0,0.00054794,120]
[404554712,1770286238898,-648.9941296,0.00054794,120]
[404554713,1770286239001,-515.79510625,0.00054794,120]
[404554714,1770286239012,-500.0,0.00054794,120]
[404554715,1770286239023,-505.54590983,0.00054794,120]
[404554716,1770286239034,-1151.3,0.00054794,2]
[404554717,1770286239044,-519.00782173,0.00054794,120]
[404554718,1770286239056,-527.21106277,0.00054794,120]
[404554719,1770286239066,-506.77582712,0.00054794,120]
[404554720,1770286239078,-500.0,0.00054794,120]
[404554721,1770286239088,-500.0,0.00054794,120]
[404554722,1770286239098,-500.0,0.00054794,120]
[404554723,1770286239108,-500.0,0.00054794,120]
[404554724,1770286239117,-1000.0,0.00054794,2]
[404554725,1770286239126,-500.0,0.00054794,120]
[404554726,1770286239136,-964.38,0.00054794,120]
[404554727,1770286239146,-964.38,0.00054794,120]
[404554728,1770286239156,-964.38,0.00054794,120]
[404554729,1770286239165,-964.38,0.00054794,120]
[404554730,1770286239175,-241.95447305,0.00054794,7]
[404554731,1770286239185,-964.38,0.00054794,120]
[404554732,1770286239195,-964.38,0.00054794,120]
[404554733,1770286239204,-964.38,0.00054794,120]
[404554734,1770286239215,-964.38,0.00054794,120]
[404554735,1770286239224,-964.38,0.00054794,120]
[404554736,1770286239235,-964.38,0.00054794,120]
[404554737,1770286239245,-964.38,0.00054794,120]
[404554738,1770286239255,-964.38,0.00054794,120]
[404554739,1770286239266,-964.38,0.00054794,120]
[404554740,1770286239277,-964.38,0.00054794,120]
[404554741,1770286239287,-964.38,0.00054794,120]
[404554742,1770286239297,-964.38,0.00054794,120]
[404554743,1770286239308,-964.38,0.00054794,120]
[404554744,1770286239318,-964.38,0.00054794,120]
[404554745,1770286239331,-964.38,0.00054794,120]
[404554746,1770286239341,-964.38,0.00054794,120]
[404554747,1770286239350,-964.38,0.00054794,120]
[404554748,1770286239360,-964.38,0.00054794,120]
[404554749,1770286239371,-500.0,0.00054794,120]
[404554750,1770286239381,-964.38,0.00054794,120]
[404554751,1770286239391,-964.50352913,0.00054794,120]
[404554752,1770286239401,-500.0,0.00054794,120]
[404554753,1770286239411,-500.0,0.00054794,120]
[404554754,1770286239421,-659.27,0.00054794,120]
[404554755,1770286239432,-500.0,0.00054794,120]
[404554757,1770286239442,-200.0,0.00054794,120]
[404554759,1770286239451,-500.0,0.00054794,120]
[404554761,1770286239461,-500.0,0.00054794,120]
[404554762,1770286239471,-525.36619795,0.00054794,120]
[404554764,1770286239480,-500.0,0.00054794,120]
[404554766,1770286239490,-500.0,0.00054794,120]
[404554768,1770286239499,-506.99251224,0.00054794,120]
[404554770,1770286239509,-500.0,0.00054794,120]
[404554771,1770286239519,-500.0,0.00054794,120]
[404554772,1770286239530,-533.70901736,0.00054794,120]
[404554773,1770286239539,-500.0,0.00054794,120]
[404554775,1770286239549,-500.0,0.00054794,120]
[404554776,1770286239559,-538.73,0.00054794,120]
[404554778,1770286239568,-500.0,0.00054794,120]
[404554780,1770286239580,-1003.47,0.00054794,21]
[404554781,1770286239589,-500.0,0.00054794,120]
[404554782,1770286239599,-500.0,0.00054794,120]
[404554783,1770286239608,-500.0,0.00054794,120]
[404554784,1770286239618,-500.0,0.00054794,120]
[404554785,1770286239628,-500.0,0.00054794,120]
[404554786,1770286239637,-505.2153071,0.00054794,120]
[404554787,1770286239647,-500.0,0.00054794,120]
[404554788,1770286239658,-510.25755733,0.00054794,120]
[404554789,1770286239667,-500.0,0.00054794,120]
[404554790,1770286239676,-500.0,0.00054794,120]
[404554791,1770286239686,-500.0,0.00054794,120]
[404554792,1770286239696,-500.0,0.00054794,120]
[404554793,1770286239705,-500.0,0.00054794,120]
[404554795,1770286239716,-539.20718006,0.00054794,120]
[404554797,1770286239726,-986.51,0.00054794,120]
[404554799,1770286239735,-500.0,0.00054794,120]
[404554801,1770286239744,-500.0,0.00054794,120]
[404554803,1770286239753,-500.0,0.00054794,120]
[404554805,1770286239763,-538.38,0.00054794,120]
[404554806,1770286239772,-734.66,0.00054794,120]
[404554809,1770286239783,-500.0,0.00054794,120]
[404554810,1770286239792,-500.0,0.00054794,120]
[404554812,1770286239802,-500.0,0.00054794,120]
[404554814,1770286239811,-500.0,0.00054794,120]
[404554816,1770286239820,-500.0,0.00054794,120]
[404554817,1770286239832,-512.40855507,0.00054794,120]
[404554819,1770286239844,-500.0,0.00054794,120]
[404554821,1770286239853,-505.26252234,0.00054794,120]
[404554823,1770286239863,-522.73589363,0.00054794,120]
[404554825,1770286239874,-514.99338347,0.00054794,120]
[404554827,1770286239883,-500.0,0.00054794,120]
[404554829,1770286239894,-500.0,0.00054794,120]
[404554831,1770286239907,-500.0,0.00054794,120]
[404554833,1770286239917,-501.69635149,0.00054794,120]
[404554835,1770286239926,-554.20898101,0.00054794,120]
[404554837,1770286239935,-500.0,0.00054794,120]
[404554839,1770286239944,-539.9164901,0.00054794,120]
[404554841,1770286239953,-500.0,0.00054794,120]
[404554843,1770286239962,-500.0,0.00054794,60]
[404554845,1770286239972,-500.0,0.00054794,120]
[404554847,1770286239981,-500.0,0.00054794,120]
[404554849,1770286239990,-561.9,0.00054794,120]
[404554851,1770286239999,-599.61946645,0.00054794,120]
[404554853,1770286240008,-518.59294652,0.00054794,120]
[404554855,1770286240017,-512.10827083,0.00054794,120]
[404554857,1770286240027,-500.0,0.00054794,54]
[404554859,1770286240037,-500.0,0.00054794,120]
[404554861,1770286240046,-500.0,0.00054794,120]
[404554862,1770286240056,-500.0,0.00054794,60]
[404554864,1770286240066,-535.13682178,0.00054794,120]
[404554866,1770286240077,-508.77968171,0.00054794,120]
[404554868,1770286240086,-558.74378315,0.00054794,120]
[404554870,1770286240095,-507.2695516,0.00054794,120]
[404554872,1770286240105,-500.0,0.00054794,120]
[404554874,1770286240114,-389.38571971,0.00054794,120]
[404554877,1770286240123,-517.34744849,0.00054794,120]
[404554879,1770286240132,-530.36749621,0.00054794,120]
[404554882,1770286240142,-536.13802318,0.00054794,120]
[404554885,1770286240151,-650.58,0.00054794,120]
[404554888,1770286240160,-515.36802531,0.00054794,120]
[404554890,1770286240169,-500.0,0.00054794,120]
[404554892,1770286240179,-500.0,0.00054794,120]
[404554894,1770286240188,-500.0,0.00054794,120]
[404554896,1770286240198,-500.0,0.00054794,120]
[404554897,1770286240207,-551.24098873,0.00054794,120]
[404554899,1770286240216,-500.0,0.00054794,120]
[404554901,1770286240225,-525.80845527,0.00054794,120]
[404554903,1770286240235,-579.90704887,0.00054794,120]
[404554905,1770286240244,-512.02636697,0.00054794,120]
[404554907,1770286240253,-367.9161248,0.00055332,4]
[404554909,1770286240262,-1000.0,0.00055342,2]
[404554911,1770286240271,-500.0,0.00055342,120]
[404554913,1770286240280,-500.0,0.00055342,120]
[404554915,1770286240289,-546.07,0.00055342,120]
[404554917,1770286240298,-500.0,0.00055342,120]
[404554919,1770286240307,-500.0,0.00055342,120]
[404554921,1770286240316,-500.0,0.00055342,120]
[404554923,1770286240328,-500.0,0.00055342,120]
[404554925,1770286240337,-600.32621463,0.00055342,120]
[404554927,1770286240347,-625.62441372,0.00055342,120]
[404554929,1770286240356,-500.0,0.00055342,120]
[404554931,1770286240365,-500.0,0.00055342,120]
[404554933,1770286240375,-515.94725062,0.00055342,120]
[404554934,1770286240384,-500.0,0.00055342,120]
[404554936,1770286240392,-500.0,0.00055342,120]
[404554938,1770286240402,-500.0,0.00055342,120]
[404554940,1770286240411,-500.0,0.00055342,120]
[404554942,1770286240420,-500.0,0.00055342,120]
[404554944,1770286240429,-500.0,0.00055342,120]
[404554946,1770286240439,-500.0,0.00055342,120]
[404554948,1770286240448,-500.0,0.00055342,120]
[404554950,1770286240457,-500.0,0.00055342,120]
[404554952,1770286240465,-500.0,0.00055342,120]
[404554954,1770286240475,-500.0,0.00055342,120]
[404554956,1770286240483,-500.0,0.00055342,120]
[404554957,1770286240493,-500.0,0.00055342,120]
[404554959,1770286240502,-1151.3,0.00055342,2]
[404554961,1770286240511,-500.0,0.00055342,120]
[404554963,1770286240520,-500.0,0.00055342,120]
[404554965,1770286240528,-500.0,0.00055342,120]
[404554967,1770286240538,-1000.0,0.00055342,2]
[404554969,1770286240547,-500.0,0.00055342,120]
[404554971,1770286240557,-500.0,0.00055342,120]
[404554973,1770286240567,-500.0,0.00055342,120]
[404554975,1770286240576,-659.27,0.00055342,120]
[404554977,1770286240585,-525.40020828,0.00055342,120]
[404554979,1770286240593,-200.0,0.00055342,120]
[404554980,1770286240603,-500.0,0.00055342,120]
[404554982,1770286240612,-500.0,0.00055342,120]
[404554984,1770286240621,-500.0,0.00055342,120]
[404554986,1770286240630,-500.0,0.00055342,120]
[404554988,1770286240640,-500.0,0.00055342,120]
[404554990,1770286240649,-500.0,0.00055342,120]
[404554992,1770286240659,-500.0,0.00055342,120]
[404554994,1770286240667,-538.73,0.00055342,120]
[404554996,1770286240676,-1003.47,0.00055342,21]
[404554998,1770286240685,-500.0,0.00055342,120]
[404555000,1770286240695,-500.0,0.00055342,120]
[404555002,1770286240703,-500.0,0.00055342,120]
[404555004,1770286240712,-500.0,0.00055342,120]
[404555005,1770286240722,-500.0,0.00055342,120]
[404555007,1770286240731,-538.11317503,0.00055342,120]
[404555009,1770286240740,-986.51,0.00055342,120]
[404555011,1770286240750,-500.0,0.00055342,120]
[404555013,1770286240759,-500.0,0.00055342,120]
[404555015,1770286240768,-500.0,0.00055342,120]
[404555017,1770286240777,-538.38,0.00055342,120]
[404555019,1770286240787,-734.66,0.00055342,120]
[404555021,1770286240795,-500.0,0.00055342,120]
[404555023,1770286240805,-500.0,0.00055342,120]
[404555025,1770286240814,-500.0,0.00055342,120]
[404555027,1770286240824,-500.0,0.00055342,120]
[404555029,1770286240834,-528.18033862,0.00055342,120]
[404555031,1770286240846,-500.0,0.00055342,120]
[404555033,1770286240856,-500.0,0.00055342,120]
[404555035,1770286240868,-501.24790665,0.00055342,120]
[404555037,1770286240877,-500.0,0.00055342,60]
[404555038,1770286240886,-500.0,0.00055342,120]
[404555040,1770286240895,-561.9,0.00055342,120]
[404555042,1770286240905,-500.0,0.00055342,54]
[404555044,1770286240915,-500.0,0.00055342,120]
[404555046,1770286240924,-500.0,0.00055342,120]
[404555048,1770286240932,-500.0,0.00055342,60]
[404555050,1770286240942,-500.0,0.00055342,120]
[404555052,1770286240951,-650.58,0.00055342,120]
[404555053,1770286240960,-500.0,0.00055342,120]
[404555055,1770286240969,-500.0,0.00055342,120]
[404555056,1770286240978,-500.0,0.00055342,120]
[404555058,1770286240987,-672.44631815,0.00055801,21]
[404555060,1770286240997,-1000.0,0.0005589,2]
[404555062,1770286241006,-500.0,0.0005589,120]
[404555064,1770286241018,-500.0,0.0005589,120]
[404555066,1770286241027,-546.07,0.0005589,120]
[404555068,1770286241036,-575.00000038,0.0005589,120]
[404555070,1770286241047,-500.0,0.0005589,120]
[404555072,1770286241055,-500.0,0.0005589,120]
[404555074,1770286241064,-500.0,0.0005589,120]
[404555076,1770286241074,-501.42892506,0.0005589,120]
[404555078,1770286241083,-604.15574391,0.0005589,120]
[404555079,1770286241092,-500.0,0.0005589,120]
[404555081,1770286241103,-500.0,0.0005589,120]
[404555083,1770286241112,-500.0,0.0005589,120]
[404555085,1770286241121,-500.0,0.0005589,120]
[404555087,1770286241130,-567.45836178,0.0005589,120]
[404555089,1770286241140,-500.0,0.0005589,120]
[404555091,1770286241150,-500.0,0.0005589,120]
[404555093,1770286241159,-500.0,0.0005589,120]
[404555095,1770286241168,-500.0,0.0005589,120]
[404555097,1770286241177,-500.0,0.0005589,120]
[404555099,1770286241186,-1151.3,0.0005589,2]
[404555100,1770286241196,-500.0,0.0005589,120]
[404555102,1770286241205,-500.0,0.0005589,120]
[404555111,1770286241286,-500.0,0.0005589,120]
[404555113,1770286241297,-1000.0,0.0005589,2]
[404555115,1770286241307,-500.0,0.0005589,120]
[404555117,1770286241316,-500.0,0.0005589,120]
[404555119,1770286241326,-500.0,0.0005589,120]
[404555121,1770286241335,-659.27,0.0005589,120]
[404555122,1770286241344,-200.0,0.0005589,120]
[404555124,1770286241354,-500.0,0.0005589,120]
[404555126,1770286241363,-500.0,0.0005589,120]
[404555128,1770286241373,-500.0,0.0005589,120]
[404555130,1770286241382,-500.0,0.0005589,120]
[404555132,1770286241391,-500.0,0.0005589,120]
[404555134,1770286241400,-500.0,0.0005589,120]
[404555136,1770286241409,-538.73,0.0005589,120]
[404555138,1770286241418,-1003.47,0.0005589,21]
[404555139,1770286241427,-500.0,0.0005589,120]
[404555141,1770286241436,-500.0,0.0005589,120]
[404555143,1770286241445,-500.0,0.0005589,120]
[404555145,1770286241455,-500.0,0.0005589,120]
[404555147,1770286241464,-986.51,0.0005589,120]
[404555149,1770286241473,-500.0,0.0005589,120]
[404555151,1770286241483,-538.38,0.0005589,120]
[404555153,1770286241491,-734.66,0.0005589,120]
[404555154,1770286241501,-500.0,0.0005589,120]
[404555156,1770286241510,-599.48099161,0.0005589,120]
[404555158,1770286241519,-500.0,0.0005589,120]
[404555160,1770286241528,-500.0,0.0005589,120]
[404555162,1770286241537,-500.0,0.0005589,120]
[404555164,1770286241546,-500.0,0.0005589,120]
[404555166,1770286241555,-500.0,0.0005589,60]
[404555168,1770286241564,-500.0,0.0005589,120]
[404555169,1770286241574,-561.9,0.0005589,120]
[404555171,1770286241583,-500.0,0.0005589,54]
[404555173,1770286241592,-500.0,0.0005589,120]
[404555175,1770286241601,-500.0,0.0005589,120]
[404555177,1770286241610,-500.0,0.0005589,60]
[404555179,1770286241619,-500.0,0.0005589,120]
[404555181,1770286241628,-650.58,0.0005589,120]
[404555183,1770286241637,-500.0,0.0005589,120]
[404555185,1770286241647,-500.0,0.0005589,120]
[404555187,1770286241656,-500.0,0.0005589,120]
[404555189,1770286241666,-151.0,0.000562,29]
[404555191,1770286241675,-367.9161248,0.00056428,5]
[404555192,1770286241684,-1000.0,0.00056438,2]
[404555194,1770286241693,-500.0,0.00056438,120]
[404555196,1770286241703,-500.0,0.00056438,120]
[404555198,1770286241712,-546.07,0.00056438,120]
[404555200,1770286241722,-500.0,0.00056438,120]
[404555202,1770286241731,-500.0,0.00056438,120]
[404555203,1770286241740,-500.0,0.00056438,120]
[404555205,1770286241749,-500.0,0.00056438,120]
[404555207,1770286241759,-500.0,0.00056438,120]
[404555209,1770286241768,-500.0,0.00056438,120]
[404555211,1770286241777,-500.0,0.00056438,120]